[Event "SVK ECo-C Extraliga 2021-22"]
[Site "Slovakia"]
[Date "2022.02.19"]
[Round "3.5"]
[White "Nguyen, Piotr"]
[Black "Karas, Marek"]
[Result "1/2-1/2"]
[ECO "C01"]
[WhiteElo "2401"]
[BlackElo "2285"]
[Annotator "ChessBase"]
[PlyCount "124"]
[EventDate "2021.10.21"]
[EventType "team-tourn"]
[EventCountry "SVK"]
[SourceTitle "playchess.com"]
[Source "ChessBase"]
[SourceQuality "1"]
[TimeControl "40/5400+30:1800+30"]

1. e4 {[%emt 0:00:03]} e6 {[%emt 0:00:07]} 2. d4 {[%emt 0:00:05]} d5 {[%emt 0:00:05]} 3. exd5 {[%emt 0:00:08]} exd5 {[%emt 0:00:07]} 4. Nf3 {[%emt 0:00:04]} Nc6 {[%emt 0:01:52]} 5. Bb5 {[%emt 0:00:31]} Bg4 {[%emt 0:01:47]} 6. O-O {[%emt 0:03:30]} Nf6 {[%emt 0:00:59]} 7. h3 {[%emt 0:07:06]} Bxf3 {[%emt 0:00:26]} 8. Qxf3 {[%emt 0:00:05]} Be7 {[%emt 0:00:31]} 9. c3 {[%emt 0:10:45]} O-O {[%emt 0:00:29]} 10. Bf4 {[%emt 0:00:18]} Ne4 {[%emt 0:09:00]} 11. Nd2 {[%emt 0:01:44]} Nxd2 {[%emt 0:01:01]} 12. Bxd2 {[%emt 0:00:05]} Bg5 {[%emt 0:01:09]} 13. Bf4 {[%emt 0:05:57]} Bxf4 {[%emt 0:02:08]} 14. Qxf4 {[%emt 0:00:05]} Re8 {[%emt 0:01:24]} 15. Rae1 {[%emt 0:16:17]} Qd7 {[%emt 0:16:04]} 16. Re3 {[%emt 0:00:30]} Rxe3 {[%emt 0:00:30]} 17. fxe3 {[%emt 0:00:30]} Re8 {[%emt 0:00:30]} 18. Bd3 {[%emt 0:00:30]} Nd8 19. e4 {[%emt 0:00:30]} dxe4 {[%emt 0:01:00]} 20. Bxe4 {[%emt 0:00:30]} Qd6 {[%emt 0:00:30]} 21. Bd3 {[%emt 0:03:24]} Qd7 22. Be4 Qd6 {[%emt 0:04:55]} 23. Qxd6 {[%emt 0:06:07]} cxd6 {[%emt 0:00:49]} 24. Re1 {[%emt 0:01:07]} Kf8 {[%emt 0:06:27]} 25. Kf2 {[%emt 0:00:10]} Ne6 {[%emt 0:02:11]} 26. a4 {[%emt 0:03:22]} Nc7 {[%emt 0:03:20]} 27. Re3 {[%emt 0:10:36]} d5 {[%emt 0:02:34]} 28. Bc2 {[%emt 0:04:36]} Rxe3 {[%emt 0:04:00]} 29. Kxe3 {[%emt 0:00:04]} Ke7 {[%emt 0:01:03]} 30. b3 {[%emt 0:07:10]} g6 {[%emt 0:04:14]} 31. h4 {[%emt 0:04:26]} h6 {[%emt 0:01:18]} 32. c4 {[%emt 0:05:59]} Ke6 {[%emt 0:04:29]} 33. g4 {[%emt 0:03:10]} a5 {[%emt 0:03:10]} 34. Kf4 {[%emt 0:04:41]} b6 {[%emt 0:01:50]} 35. Bd1 {[%emt 0:01:20]} Kd6 {[%emt 0:00:37]} 36. Bf3 {[%emt 0:00:19]} Ne6+ {[%emt 0:02:38]} 37. Ke3 {[%emt 0:00:04]} dxc4 {[%emt 0:00:14]} 38. bxc4 {[%emt 0:00:05]} Nc7 {[%emt 0:02:46]} 39. Bb7 {[%emt 0:01:22]} Ke6 {[%emt 0:02:09]} 40. Kf4 {[%emt 0:01:44]} Kf6 {[%emt 0:04:02]} 41. Bc8 {[%emt 0:30:59]} Ne8 {[%emt 0:31:51]} 42. g5+ {[%emt 0:00:39]} hxg5+ {[%emt 0:00:13]} 43. hxg5+ {[%emt 0:00:06]} Ke7 {[%emt 0:00:15]} 44. Ke5 {[%emt 0:00:18]} f6+ {[%emt 0:01:56]} 45. gxf6+ {[%emt 0:00:00]} Nxf6 {[%emt 0:00:00]} 46. Bh3 {[%emt 0:00:00]} g5 {[%emt 0:00:00]} 47. Kf5 {[%emt 0:00:00]} Ne8 {[%emt 0:00:00]} 48. Kxg5 {[%emt 0:00:00]} Nd6 {[%emt 0:00:00]} 49. Bf1 {[%emt 0:00:00]} Ne4+ {[%emt 0:00:00]} 50. Kf4 {[%emt 0:00:00]} Nc3 {[%emt 0:00:00]} 51. Ke5 {[%emt 0:00:00]} Nxa4 {[%emt 0:00:00]} 52. Kd5 {[%emt 0:01:27]} Nc3+ {[%emt 0:00:00]} 53. Kc6 {[%emt 0:00:46]} a4 {[%emt 0:00:00]} 54. c5 {[%emt 0:02:38]} b5 {[%emt 0:00:00]} 55. d5 {[%emt 0:00:06]} a3 {[%emt 0:00:00]} 56. d6+ {[%emt 0:00:22]} Kd8 {[%emt 0:00:00]} 57. Bg2 {[%emt 0:01:34]} a2 {[%emt 0:00:00]} 58. Kb7 {[%emt 0:00:30]} a1=Q {[%emt 0:00:00]} 59. c6 {[%emt 0:00:07]} Qc1 {[%emt 0:02:11]} 60. c7+ {[%emt 0:00:48]} Kd7 {[%emt 0:00:06]} 61. c8=Q+ {[%emt 0:00:06]} Kxd6 {[%emt 0:00:07]} 62. Qf8+ {[%emt 0:01:17]} Ke6 {[%emt 0:00:36]} 1/2-1/2

[Event "SVK ECo-C Extraliga 2021-22"]
[Site "Slovakia"]
[Date "2022.02.19"]
[Round "3.5"]
[White "Varga Zoltan"]
[Black "Zvarik Martin"]
[Result "1-0"]
[ECO "A27"]
[WhiteElo "2390"]
[BlackElo "2233"]
[Annotator "ChessBase"]
[PlyCount "59"]
[EventDate "2021.10.21"]
[EventType "team-tourn"]
[EventCountry "SVK"]
[SourceTitle "playchess.com"]
[Source "ChessBase"]
[SourceQuality "1"]
[TimeControl "40/5400+30:1800+30"]

1. c4 {[%emt 0:01:10]} e5 {[%emt 0:00:49]} 2. Nf3 {[%emt 0:00:07]} Nc6 {[%emt 0:00:10]} 3. Nc3 {[%emt 0:00:04]} f5 {[%emt 0:00:14]} 4. d4 {[%emt 0:15:44]} e4 {[%emt 0:38:09]} 5. Ng5 {[%emt 0:00:30]} h6 {[%emt 0:00:30]} 6. Nh3 {[%emt 0:00:30]} g5 {[%emt 0:00:30]} 7. d5 {[%emt 0:00:30]} Ne5 {[%emt 0:00:30]} 8. f4 {[%emt 0:00:30]} Nf7 {[%emt 0:00:30]} 9. Qd4 {[%emt 0:00:30]} Be7 {[%emt 0:00:30]} 10. b3 {[%emt 0:00:30]} Bf6 {[%emt 0:00:30]} 11. Qd2 {[%emt 0:00:30]} Ne7 {[%emt 0:00:30]} 12. Bb2 {[%emt 0:00:30]} Ng6 {[%emt 0:00:30]} 13. e3 {[%emt 0:00:30]} Qe7 {[%emt 0:00:30]} 14. O-O-O {[%emt 0:01:58]} d6 {[%emt 0:01:13]} 15. Be2 {[%emt 0:00:28]} g4 {[%emt 0:05:36]} 16. Nf2 {[%emt 0:08:41]} Nh4 {[%emt 0:00:06]} 17. g3 {[%emt 0:03:27]} Nf3 {[%emt 0:00:14]} 18. Bxf3 {[%emt 0:00:23]} gxf3 {[%emt 0:00:22]} 19. g4 {[%emt 0:00:16]} Rg8 {[%emt 0:09:16]} 20. h3 {[%emt 0:07:17]} Bh4 {[%emt 0:03:06]} 21. Rdg1 {[%emt 0:05:20]} Bxf2 {[%emt 0:02:02]} 22. Qxf2 {[%emt 0:00:05]} fxg4 {[%emt 0:00:21]} 23. hxg4 {[%emt 0:00:10]} Rxg4 {[%emt 0:00:14]} 24. Qc2 {[%emt 0:01:36]} Bf5 {[%emt 0:09:32]} 25. Rxg4 {[%emt 0:03:49]} Bxg4 {[%emt 0:00:07]} 26. Nxe4 {[%emt 0:00:23]} O-O-O {[%emt 0:03:13]} 27. Bf6 {[%emt 0:01:49]} Qe8 {[%emt 0:00:08]} 28. Bxd8 {[%emt 0:00:14]} Kxd8 {[%emt 0:00:03]} 29. Nf6 {[%emt 0:03:50]} Qxe3+ {[%emt 0:11:00]} 30. Qd2 {[%emt 0:00:36]} 1-0

[Event "SVK ECo-C Extraliga 2021-22"]
[Site "Slovakia"]
[Date "2022.02.19"]
[Round "3.5"]
[White "Vass, Frantisek"]
[Black "Sepesi, Samuel"]
[Result "0-1"]
[ECO "A45"]
[WhiteElo "2311"]
[BlackElo "2137"]
[Annotator "ChessBase"]
[PlyCount "70"]
[EventDate "2021.10.21"]
[EventType "team-tourn"]
[EventCountry "SVK"]
[SourceTitle "playchess.com"]
[Source "ChessBase"]
[SourceQuality "1"]
[TimeControl "40/5400+30:1800+30"]

1. d4 {[%emt 0:00:03]} Nf6 {[%emt 0:00:06]} 2. Bg5 {[%emt 0:00:26]} g6 {[%emt 0:00:31]} 3. Bxf6 {[%emt 0:00:08]} exf6 {[%emt 0:00:05]} 4. g3 {[%emt 0:00:26]} d5 {[%emt 0:00:35]} 5. Bg2 {[%emt 0:00:19]} Be6 {[%emt 0:01:20]} 6. e3 {[%emt 0:03:00]} Nd7 {[%emt 0:02:41]} 7. Ne2 {[%emt 0:00:28]} Bd6 {[%emt 0:00:12]} 8. O-O {[%emt 0:01:56]} c6 {[%emt 0:10:31]} 9. Nd2 {[%emt 0:01:39]} h5 {[%emt 0:10:57]} 10. Nf4 {[%emt 0:02:42]} h4 {[%emt 0:08:02]} 11. Nxe6 {[%emt 0:02:30]} fxe6 {[%emt 0:00:03]} 12. Qg4 {[%emt 0:00:29]} Kf7 {[%emt 0:00:17]} 13. e4 {[%emt 0:01:09]} f5 {[%emt 0:11:19]} 14. exf5 {[%emt 0:26:41]} exf5 {[%emt 0:04:06]} 15. Qe2 {[%emt 0:00:25]} hxg3 {[%emt 0:01:15]} 16. fxg3 {[%emt 0:05:12]} Qg5 {[%emt 0:10:50]} 17. Nf3 {[%emt 0:03:22]} Qh6 {[%emt 0:00:03]} 18. Rae1 {[%emt 0:02:04]} Rae8 {[%emt 0:00:31]} 19. Qd2 {[%emt 0:02:21]} Qxd2 {[%emt 0:03:26]} 20. Nxd2 {[%emt 0:00:17]} Nf6 {[%emt 0:00:58]} 21. Bf3 {[%emt 0:01:29]} f4 {[%emt 0:10:02]} 22. Kg2 {[%emt 0:04:59]} g5 {[%emt 0:03:00]} 23. g4 {[%emt 0:02:00]} Re3 {[%emt 0:00:29]} 24. a3 {[%emt 0:19:14]} Rhe8 {[%emt 0:07:01]} 25. Rxe3 Rxe3 {[%emt 0:00:03]} 26. Kf2 {[%emt 0:08:21]} Ne4+ {[%emt 0:05:10]} 27. Bxe4 {[%emt 0:01:37]} dxe4 {[%emt 0:00:02]} 28. Rh1 {[%emt 0:04:10]} c5 {[%emt 0:02:10]} 29. d5 {[%emt 0:00:10]} Be7 {[%emt 0:05:13]} 30. c3 {[%emt 0:05:27]} b5 {[%emt 0:00:40]} 31. a4 {[%emt 0:00:48]} c4 {[%emt 0:02:37]} 32. axb5 {[%emt 0:01:36]} Bc5 {[%emt 0:00:01]} 33. Kf1 {[%emt 0:00:05]} f3 {[%emt 0:01:00]} 34. Nxc4 {[%emt 0:00:34]} Re2 {[%emt 0:00:02]} 35. h4 {[%emt 0:00:17]} Rc2 {[%emt 0:01:10]} 0-1

[Event "SVK ECo-C Extraliga 2021-22"]
[Site "Slovakia"]
[Date "2022.02.19"]
[Round "3.6"]
[White "Straka Jozef"]
[Black "Csonka Attila Istvan"]
[Result "1/2-1/2"]
[ECO "E49"]
[WhiteElo "2320"]
[BlackElo "2334"]
[Annotator "ChessBase"]
[PlyCount "89"]
[EventDate "2021.10.21"]
[EventType "team-tourn"]
[EventCountry "SVK"]
[SourceTitle "playchess.com"]
[Source "ChessBase"]
[SourceQuality "1"]
[TimeControl "40/5400+30:1800+30"]

1. d4 {[%emt 0:00:17]} Nf6 {[%emt 0:00:09]} 2. c4 {[%emt 0:00:28]} e6 {[%emt 0:00:07]} 3. Nc3 {[%emt 0:00:48]} Bb4 {[%emt 0:00:07]} 4. e3 {[%emt 0:56:10]} O-O {[%emt 0:31:06]} 5. Bd3 {[%emt 0:00:30]} d5 {[%emt 0:00:30]} 6. Nge2 {[%emt 0:00:30]} c5 {[%emt 0:00:30]} 7. O-O {[%emt 0:00:30]} Nc6 {[%emt 0:00:30]} 8. a3 {[%emt 0:00:30]} Bxc3 {[%emt 0:00:30]} 9. bxc3 {[%emt 0:00:30]} Qc7 {[%emt 0:00:30]} 10. cxd5 {[%emt 0:00:30]} exd5 {[%emt 0:00:30]} 11. Nf4 {[%emt 0:00:30]} Ne7 {[%emt 0:00:30]} 12. a4 {[%emt 0:00:30]} b6 {[%emt 0:00:30]} 13. Ba3 {[%emt 0:00:30]} Rd8 {[%emt 0:00:30]} 14. Qb1 {[%emt 0:00:30]} Ng6 {[%emt 0:00:30]} 15. Nxg6 {[%emt 0:00:30]} hxg6 {[%emt 0:00:30]} 16. a5 {[%emt 0:00:30]} Be6 {[%emt 0:05:22]} 17. Rc1 {[%emt 0:04:25]} c4 {[%emt 0:06:25]} 18. axb6 {[%emt 0:06:46]} axb6 {[%emt 0:00:49]} 19. Bc2 {[%emt 0:00:06]} Ra7 {[%emt 0:02:00]} 20. Bb4 {[%emt 0:03:24]} Rda8 {[%emt 0:05:50]} 21. Rxa7 {[%emt 0:02:16]} Rxa7 {[%emt 0:01:23]} 22. f3 {[%emt 0:04:24]} Ra8 {[%emt 0:09:57]} 23. Re1 {[%emt 0:01:40]} Ra7 {[%emt 0:08:32]} 24. g3 {[%emt 0:04:02]} Qd8 {[%emt 0:06:46]} 25. Qb2 {[%emt 0:05:26]} Qa8 {[%emt 0:01:42]} 26. Bb1 {[%emt 0:01:48]} Bf5 {[%emt 0:02:41]} 27. Bxf5 {[%emt 0:04:21]} gxf5 {[%emt 0:00:06]} 28. Qc2 {[%emt 0:00:33]} g6 {[%emt 0:01:46]} 29. Rb1 {[%emt 0:00:54]} Ra2 {[%emt 0:02:25]} 30. Rb2 {[%emt 0:00:04]} Rxb2 {[%emt 0:00:36]} 31. Qxb2 {[%emt 0:00:06]} Qa4 {[%emt 0:00:04]} 32. Qb1 {[%emt 0:01:15]} Qb3 {[%emt 0:00:49]} 33. Qe1 {[%emt 0:01:04]} Qc2 {[%emt 0:00:21]} 34. Qf2 {[%emt 0:00:21]} Qc1+ {[%emt 0:00:42]} 35. Kg2 {[%emt 0:00:02]} Kg7 {[%emt 0:01:12]} 36. h3 {[%emt 0:00:45]} b5 {[%emt 0:03:20]} 37. Qe2 {[%emt 0:00:33]} Qb1 {[%emt 0:00:46]} 38. g4 {[%emt 0:00:52]} Nd7 {[%emt 0:02:20]} 39. Bd6 {[%emt 0:00:32]} Qd3 {[%emt 0:03:18]} 40. Qe1 {[%emt 0:00:36]} Qc2+ {[%emt 0:02:31]} 41. Kg3 {[%emt 0:02:35]} Nf8 {[%emt 0:03:43]} 42. Qa1 {[%emt 0:07:51]} Qd2 {[%emt 0:06:23]} 43. Qa8 {[%emt 0:08:06]} Qe1+ {[%emt 0:00:54]} 44. Kg2 {[%emt 0:00:12]} Qe2+ {[%emt 0:00:14]} 45. Kg3 {[%emt 0:00:15]} 1/2-1/2

[Event "SVK ECo-C Extraliga 2021-22"]
[Site "Slovakia"]
[Date "2022.02.19"]
[Round "3.6"]
[White "Lanc, Alois"]
[Black "Bombek, Peter"]
[Result "0-1"]
[ECO "A43"]
[WhiteElo "2309"]
[BlackElo "2090"]
[Annotator "ChessBase"]
[PlyCount "116"]
[EventDate "2021.10.21"]
[EventType "team-tourn"]
[EventCountry "SVK"]
[SourceTitle "playchess.com"]
[Source "ChessBase"]
[SourceQuality "1"]
[TimeControl "40/5400+30:1800+30"]

1. d4 {[%emt 0:00:05]} c5 {[%emt 0:00:12]} 2. e3 {[%emt 0:00:33]} Nf6 {[%emt 0:00:44]} 3. c4 {[%emt 0:00:28]} g6 {[%emt 0:00:29]} 4. Nc3 {[%emt 0:00:35]} Bg7 {[%emt 0:00:25]} 5. Nf3 {[%emt 0:00:28]} O-O {[%emt 0:01:16]} 6. Be2 {[%emt 0:03:00]} cxd4 {[%emt 0:01:15]} 7. exd4 {[%emt 0:02:25]} d5 {[%emt 0:01:13]} 8. O-O {[%emt 0:00:47]} dxc4 {[%emt 0:07:11]} 9. Bxc4 {[%emt 0:00:28]} Bg4 {[%emt 0:01:05]} 10. Be3 {[%emt 0:08:23]} Nc6 {[%emt 0:02:47]} 11. h3 {[%emt 0:05:45]} Bxf3 {[%emt 0:04:22]} 12. Qxf3 {[%emt 0:01:25]} Nxd4 {[%emt 0:01:54]} 13. Qxb7 Nc2 {[%emt 0:02:51]} 14. Rad1 {[%emt 0:07:02]} Qc8 {[%emt 0:02:11]} 15. Qxc8 {[%emt 0:03:10]} Raxc8 {[%emt 0:06:58]} 16. Bb3 {[%emt 0:01:36]} Nxe3 {[%emt 0:00:27]} 17. fxe3 {[%emt 0:00:04]} Bh6 {[%emt 0:09:31]} 18. Kf2 {[%emt 0:01:30]} Rc5 {[%emt 0:06:43]} 19. Ke2 {[%emt 0:07:21]} Re5 {[%emt 0:03:20]} 20. Rf3 {[%emt 0:01:53]} Bg5 {[%emt 0:01:48]} 21. Rd4 {[%emt 0:06:33]} h5 {[%emt 0:01:49]} 22. Rb4 {[%emt 0:01:43]} h4 {[%emt 0:05:48]} 23. Rb5 {[%emt 0:01:07]} Rxb5 {[%emt 0:01:47]} 24. Nxb5 {[%emt 0:00:14]} a5 {[%emt 0:00:47]} 25. Rf1 {[%emt 0:08:14]} Ne4 {[%emt 0:04:48]} 26. Rd1 {[%emt 0:02:19]} Rb8 {[%emt 0:04:49]} 27. Nc3 {[%emt 0:10:03]} Nxc3+ {[%emt 0:08:22]} 28. bxc3 {[%emt 0:01:49]} Bf6 {[%emt 0:02:25]} 29. c4 {[%emt 0:01:17]} Rc8 {[%emt 0:03:31]} 30. Rc1 {[%emt 0:04:57]} Rc5 {[%emt 0:00:40]} 31. Rc2 {[%emt 0:04:07]} e6 {[%emt 0:01:47]} 32. Ba4 {[%emt 0:01:47]} Be7 {[%emt 0:01:02]} 33. Kd3 {[%emt 0:02:26]} Rg5 {[%emt 0:01:11]} 34. Bc6 {[%emt 0:04:07]} Bc5 {[%emt 0:01:54]} 35. Rb2 {[%emt 0:03:41]} Re5 {[%emt 0:01:28]} 36. Re2 {[%emt 0:01:51]} Kf8 {[%emt 0:02:48]} 37. Bf3 {[%emt 0:00:38]} Ke7 {[%emt 0:01:57]} 38. e4 {[%emt 0:01:11]} Ba3 {[%emt 0:01:05]} 39. Re1 {[%emt 0:00:46]} Rc5 {[%emt 0:01:11]} 40. Rb1 {[%emt 0:00:37]} Bb4 {[%emt 0:01:00]} 41. Be2 {[%emt 0:06:34]} Rc7 {[%emt 0:01:09]} 42. Rd1 {[%emt 0:02:44]} Kf6 {[%emt 0:00:41]} 43. Ke3 {[%emt 0:04:13]} Bc5+ {[%emt 0:02:51]} 44. Kf3 {[%emt 0:01:00]} Ke5 {[%emt 0:00:17]} 45. Rd3 {[%emt 0:04:07]} f5 {[%emt 0:02:18]} 46. Rb3 {[%emt 0:04:28]} fxe4+ {[%emt 0:05:37]} 47. Kg4 {[%emt 0:00:09]} Rf7 {[%emt 0:00:17]} 48. Kxh4 {[%emt 0:03:48]} Rf2 {[%emt 0:00:41]} 49. Bg4 {[%emt 0:00:45]} Rxg2 {[%emt 0:00:36]} 50. Rb5 {[%emt 0:04:32]} Kd4 {[%emt 0:00:35]} 51. Kg5 {[%emt 0:00:36]} e3 {[%emt 0:01:56]} 52. Kf6 {[%emt 0:01:16]} e2 {[%emt 0:05:24]} 53. Bxe2 {[%emt 0:01:38]} Rxe2 {[%emt 0:00:16]} 54. Rxa5 {[%emt 0:00:26]} e5 {[%emt 0:00:18]} 55. Kxg6 {[%emt 0:01:20]} e4 {[%emt 0:00:29]} 56. Ra8 {[%emt 0:01:34]} e3 {[%emt 0:00:17]} 57. h4 {[%emt 0:00:15]} Rg2+ {[%emt 0:00:40]} 58. Kf5 {[%emt 0:00:30]} e2 {[%emt 0:02:15]} 0-1

[Event "SVK ECo-C Extraliga 2021-22"]
[Site "Slovakia"]
[Date "2022.02.19"]
[Round "3.6"]
[White "Gasa, Patrik"]
[Black "Jacko, Vladimir"]
[Result "0-1"]
[ECO "E11"]
[WhiteElo "2188"]
[BlackElo "2350"]
[Annotator "ChessBase"]
[PlyCount "86"]
[EventDate "2021.10.21"]
[EventType "team-tourn"]
[EventCountry "SVK"]
[SourceTitle "playchess.com"]
[Source "ChessBase"]
[SourceQuality "1"]
[TimeControl "40/5400+30:1800+30"]

1. d4 {[%emt 0:00:15]} Nf6 {[%emt 0:01:01]} 2. c4 {[%emt 0:00:06]} e6 {[%emt 0:00:55]} 3. Nf3 {[%emt 0:00:04]} Bb4+ {[%emt 0:00:34]} 4. Bd2 {[%emt 0:00:44]} c5 {[%emt 0:00:27]} 5. e3 {[%emt 0:01:01]} Nc6 {[%emt 0:06:39]} 6. Bxb4 {[%emt 0:06:12]} cxb4 {[%emt 0:01:22]} 7. Nbd2 {[%emt 0:00:26]} O-O {[%emt 0:00:33]} 8. Bd3 {[%emt 0:00:11]} d6 {[%emt 0:00:21]} 9. O-O {[%emt 0:01:44]} e5 {[%emt 0:00:55]} 10. h3 {[%emt 0:05:57]} Qb6 {[%emt 0:03:34]} 11. c5 {[%emt 0:09:18]} Qd8 {[%emt 0:07:07]} 12. cxd6 {[%emt 0:02:59]} exd4 {[%emt 0:00:31]} 13. exd4 {[%emt 0:00:48]} Qxd6 {[%emt 0:00:55]} 14. Nc4 {[%emt 0:08:04]} Qf4 {[%emt 0:12:17]} 15. Qc1 {[%emt 0:00:30]} Qxc1 {[%emt 0:00:30]} 16. Raxc1 {[%emt 0:00:30]} Be6 17. Rfd1 {[%emt 0:00:30]} Rfd8 {[%emt 0:01:00]} 18. a3 {[%emt 0:36:58]} bxa3 {[%emt 0:06:23]} 19. bxa3 {[%emt 0:00:20]} g6 {[%emt 0:03:49]} 20. Bf1 {[%emt 0:06:04]} Rac8 {[%emt 0:07:03]} 21. Rb1 {[%emt 0:03:48]} b6 {[%emt 0:02:18]} 22. Ne3 {[%emt 0:00:19]} Ne7 {[%emt 0:06:25]} 23. a4 {[%emt 0:06:51]} Nfd5 {[%emt 0:04:26]} 24. Rb2 {[%emt 0:01:02]} Nf5 {[%emt 0:05:26]} 25. Nxf5 {[%emt 0:04:04]} Bxf5 {[%emt 0:00:02]} 26. Ra1 {[%emt 0:02:36]} Nf4 {[%emt 0:06:15]} 27. a5 {[%emt 0:00:23]} bxa5 {[%emt 0:01:01]} 28. Rba2 {[%emt 0:01:45]} Be4 {[%emt 0:08:58]} 29. Nd2 {[%emt 0:00:49]} Ba8 {[%emt 0:02:47]} 30. Rxa5 {[%emt 0:00:09]} Rxd4 {[%emt 0:00:09]} 31. Nb3 {[%emt 0:00:54]} Rb4 {[%emt 0:00:22]} 32. R5a4 {[%emt 0:00:29]} Nxh3+ {[%emt 0:00:51]} 33. gxh3 {[%emt 0:00:07]} Rxb3 {[%emt 0:00:06]} 34. Bc4 {[%emt 0:00:37]} Rxh3 {[%emt 0:01:47]} 35. Bxf7+ {[%emt 0:00:06]} Kg7 {[%emt 0:00:58]} 36. f3 {[%emt 0:00:17]} Rg3+ {[%emt 0:01:01]} 37. Kh2 {[%emt 0:01:23]} Rxf3 {[%emt 0:00:12]} 38. Be6 {[%emt 0:00:30]} Rc2+ {[%emt 0:00:46]} 39. Kg1 {[%emt 0:00:02]} Rg3+ {[%emt 0:00:14]} 40. Kf1 {[%emt 0:00:02]} Bg2+ {[%emt 0:06:11]} 41. Ke1 {[%emt 0:30:07]} Bc6 {[%emt 0:31:35]} 42. Rxa7+ {[%emt 0:01:35]} Kf6 {[%emt 0:00:08]} 43. Kd1 {[%emt 0:00:00]} Rh2 {[%emt 0:00:00]} 0-1

[Event "SVK ECo-C Extraliga 2021-22"]
[Site "Slovakia"]
[Date "2022.02.19"]
[Round "3.6"]
[White "Kravec, Patrik"]
[Black "Szucs, Vladimir"]
[Result "1-0"]
[ECO "A36"]
[WhiteElo "2140"]
[BlackElo "2117"]
[Annotator "ChessBase"]
[PlyCount "75"]
[EventDate "2021.10.21"]
[EventType "team-tourn"]
[EventCountry "SVK"]
[SourceTitle "playchess.com"]
[Source "ChessBase"]
[SourceQuality "1"]
[TimeControl "40/5400+30:1800+30"]

1. c4 {[%emt 0:00:23]} c5 {[%emt 0:00:30]} 2. Nc3 {[%emt 0:00:25]} Nc6 {[%emt 0:00:13]} 3. g3 {[%emt 0:00:50]} g6 {[%emt 0:00:07]} 4. Bg2 {[%emt 0:00:38]} Bg7 {[%emt 0:00:08]} 5. d3 {[%emt 0:00:30]} Nf6 {[%emt 0:01:13]} 6. Nh3 {[%emt 0:04:32]} d6 {[%emt 0:01:19]} 7. Nf4 {[%emt 0:01:22]} Bd7 {[%emt 0:00:38]} 8. Rb1 {[%emt 0:01:41]} a6 {[%emt 0:02:00]} 9. O-O {[%emt 0:06:06]} Rb8 {[%emt 0:02:17]} 10. b3 {[%emt 0:01:55]} O-O {[%emt 0:02:18]} 11. Bb2 {[%emt 0:01:49]} b5 {[%emt 0:03:36]} 12. Ncd5 {[%emt 0:05:05]} Nxd5 {[%emt 0:02:57]} 13. Nxd5 {[%emt 0:00:54]} Bxb2 {[%emt 0:03:38]} 14. Rxb2 {[%emt 0:00:04]} bxc4 {[%emt 0:02:48]} 15. dxc4 {[%emt 0:00:36]} a5 {[%emt 0:01:24]} 16. Nc3 {[%emt 0:19:14]} Ne5 {[%emt 0:04:58]} 17. Qd2 {[%emt 0:09:38]} a4 {[%emt 0:05:23]} 18. f4 {[%emt 0:01:25]} Ng4 {[%emt 0:08:29]} 19. h3 {[%emt 0:01:22]} a3 {[%emt 0:01:25]} 20. Rc2 {[%emt 0:03:09]} Nf6 {[%emt 0:01:44]} 21. Kh2 {[%emt 0:05:13]} Qb6 {[%emt 0:04:51]} 22. e4 {[%emt 0:05:16]} Bc6 {[%emt 0:00:59]} 23. Qe3 {[%emt 0:06:13]} Ne8 {[%emt 0:07:03]} 24. e5 {[%emt 0:02:01]} Ng7 {[%emt 0:04:23]} 25. g4 {[%emt 0:02:06]} dxe5 {[%emt 0:05:21]} 26. Qxe5 {[%emt 0:05:59]} Ne6 {[%emt 0:02:08]} 27. Bxc6 {[%emt 0:02:42]} Qxc6 {[%emt 0:00:07]} 28. Nd5 {[%emt 0:00:17]} Rb7 {[%emt 0:01:33]} 29. Rcf2 {[%emt 0:01:26]} Qd6 {[%emt 0:03:44]} 30. Qe4 {[%emt 0:05:13]} Rd7 {[%emt 0:01:38]} 31. Kg2 {[%emt 0:00:44]} f5 {[%emt 0:04:42]} 32. Qe3 {[%emt 0:02:25]} fxg4 {[%emt 0:00:43]} 33. hxg4 {[%emt 0:00:34]} Ng7 {[%emt 0:05:36]} 34. f5 {[%emt 0:02:48]} gxf5 {[%emt 0:03:09]} 35. gxf5 {[%emt 0:00:04]} Kh8 {[%emt 0:02:05]} 36. f6 {[%emt 0:01:00]} e6 {[%emt 0:08:00]} 37. Ne7 {[%emt 0:01:14]} Nh5 {[%emt 0:03:32]} 38. Qg5 {[%emt 0:01:27]} 1-0

[Event "SVK ECo-C Extraliga 2021-22"]
[Site "Slovakia"]
[Date "2022.02.19"]
[Round "3.7"]
[White "Finek Vaclav"]
[Black "Kopera Michal"]
[Result "1-0"]
[ECO "E06"]
[WhiteElo "2419"]
[BlackElo "2124"]
[Annotator "ChessBase"]
[PlyCount "89"]
[EventDate "2021.10.21"]
[EventType "team-tourn"]
[EventCountry "SVK"]
[SourceTitle "playchess.com"]
[Source "ChessBase"]
[SourceQuality "1"]
[TimeControl "40/5400+30:1800+30"]

1. d4 {[%emt 0:00:06]} d5 {[%emt 0:00:09]} 2. c4 {[%emt 0:00:05]} e6 {[%emt 0:00:04]} 3. Nf3 {[%emt 0:00:07]} Nf6 {[%emt 0:00:09]} 4. g3 {[%emt 0:00:10]} Be7 {[%emt 0:01:04]} 5. Bg2 {[%emt 0:00:12]} O-O {[%emt 0:08:46]} 6. O-O {[%emt 0:04:45]} dxc4 {[%emt 0:20:03]} 7. Qc2 {[%emt 0:17:25]} c6 {[%emt 0:05:14]} 8. Qxc4 {[%emt 0:07:54]} b5 {[%emt 0:16:32]} 9. Qd3 {[%emt 0:00:30]} Bb7 {[%emt 0:00:30]} 10. Bg5 {[%emt 0:00:30]} Nbd7 {[%emt 0:00:30]} 11. Nc3 {[%emt 0:00:30]} a6 {[%emt 0:00:30]} 12. a4 {[%emt 0:00:30]} b4 {[%emt 0:00:30]} 13. Bxf6 {[%emt 0:00:30]} Nxf6 {[%emt 0:00:30]} 14. Ne4 {[%emt 0:00:30]} a5 {[%emt 0:00:30]} 15. Ne5 {[%emt 0:00:30]} Nd5 {[%emt 0:00:30]} 16. Rac1 {[%emt 0:01:51]} Rc8 {[%emt 0:00:46]} 17. Rfd1 {[%emt 0:08:27]} Qc7 {[%emt 0:02:32]} 18. e3 {[%emt 0:03:46]} Rfd8 {[%emt 0:02:30]} 19. Qb3 {[%emt 0:04:04]} Qb6 {[%emt 0:04:01]} 20. Nc5 {[%emt 0:00:49]} Bxc5 {[%emt 0:01:51]} 21. Rxc5 {[%emt 0:00:47]} Ba6 {[%emt 0:04:29]} 22. Rdc1 {[%emt 0:03:56]} Rd6 {[%emt 0:01:16]} 23. h4 {[%emt 0:04:29]} g6 {[%emt 0:06:48]} 24. Bf1 {[%emt 0:06:38]} Ne7 {[%emt 0:02:29]} 25. Bxa6 {[%emt 0:08:21]} Qxa6 {[%emt 0:00:04]} 26. Nc4 {[%emt 0:00:22]} Rd5 {[%emt 0:00:55]} 27. Nxa5 {[%emt 0:00:46]} Qb6 {[%emt 0:02:14]} 28. R1c4 {[%emt 0:08:08]} Rxc5 {[%emt 0:02:53]} 29. Rxc5 {[%emt 0:00:08]} Kg7 {[%emt 0:04:58]} 30. Nc4 {[%emt 0:00:11]} Qb8 {[%emt 0:00:22]} 31. Ne5 {[%emt 0:00:34]} Qb7 {[%emt 0:00:51]} 32. Nd3 {[%emt 0:02:49]} Nd5 {[%emt 0:00:31]} 33. Rc4 {[%emt 0:01:46]} f5 {[%emt 0:05:09]} 34. Ne5 {[%emt 0:03:30]} Kf6 {[%emt 0:03:31]} 35. Qc2 {[%emt 0:03:29]} Ne7 {[%emt 0:00:17]} 36. Nd3 {[%emt 0:01:07]} Nd5 {[%emt 0:00:16]} 37. Nc5 {[%emt 0:00:22]} Qa7 {[%emt 0:01:58]} 38. e4 {[%emt 0:00:11]} fxe4 {[%emt 0:01:06]} 39. Qxe4 {[%emt 0:01:01]} Re8 {[%emt 0:01:35]} 40. Qe5+ {[%emt 0:01:05]} Kf7 {[%emt 0:00:15]} 41. Ne4 {[%emt 0:30:26]} Qa6 {[%emt 0:06:19]} 42. Ng5+ {[%emt 0:00:00]} Kg8 {[%emt 0:01:30]} 43. Nxe6 {[%emt 0:00:00]} Re7 {[%emt 0:00:51]} 44. Qb8+ {[%emt 0:00:00]} Kf7 {[%emt 0:00:15]} 45. Rxc6 {[%emt 0:00:00]} 1-0